bitfinex/quotes_ETHUSD_20240716
["timestamp","ask_amount","ask_price","bid_price","bid_amount"]
[1721091286755,0.07768458,3478.7,3478.6,2.87471]
[1721091289980,0.07768458,3478.7,3477.7,7.37]
[1721091290187,0.07768458,3478.7,3478.1,2.87511]
[1721091292412,2.3649,3478.6,3477.9,2.87528]
[1721091292563,3.54375846,3478.6,3477.9,2.87528]
[1721091292962,0.07783639,3478.5,3477.9,2.87528]
[1721091293507,0.07783639,3478.5,3477.7,2.87545]
[1721091293664,0.07783639,3478.5,3477.9,2.87523]
[1721091293867,1.69715526,3478.5,3477.9,2.87523]
[1721091294396,0.07783639,3478.5,3477.9,2.87523]
[1721091294588,0.07783639,3478.5,3478.1,2.8751]
[1721091294910,0.07783639,3478.5,3478.0,2.87519]
[1721091295604,0.07783639,3478.5,3478.1,2.8751]
[1721091296509,0.07783639,3478.5,3478.0,2.87519]
[1721091296715,0.24427364,3478.4,3477.8,2.8753]
[1721091297006,2.2575,3478.3,3477.9,2.87529]
[1721091297178,2.33526993,3478.3,3477.9,2.87529]
[1721091298014,2.33526993,3478.3,3477.7,2.87546]
[1721091298308,2.33526993,3478.3,3478.0,2.87521]
[1721091299580,2.33526993,3478.3,3478.1,2.87505]
[1721091299787,0.07776993,3478.3,3478.2,5.7501]
[1721091302098,9.4,3478.4,3478.3,5.74992]
[1721091302411,9.47774269,3478.4,3478.3,5.74992]
[1721091305197,0.07774269,3478.4,3478.3,8.62488]
[1721091305397,0.07774269,3478.4,3478.3,11.62488]
[1721091305623,2.4433,3479.1,3479.0,2.87438]
[1721091306060,2.52130192,3479.1,3479.0,2.87438]
[1721091306214,0.07800192,3479.1,3479.0,2.87438]
[1721091306661,9.4,3479.3,3479.1,2.87423]
[1721091307656,9.4,3479.3,3479.2,2.87422]
[1721091308549,9.4,3479.3,3479.0,2.87434]
[1721091308751,9.4,3479.3,3479.1,2.87427]
[1721091309068,9.4,3479.3,3478.9,2.87444]
[1721091309536,9.4,3479.3,3479.1,2.87422]
[1721091310237,9.4,3479.3,3479.2,2.87422]
[1721091312234,9.47808244,3479.3,3479.2,2.87422]
[1721091316095,9.47808244,3479.3,3478.6,2.424]
[1721091316258,9.47808244,3479.3,3479.0,2.87431]
[1721091316771,9.47808244,3479.3,3478.9,2.87446]
[1721091316960,9.47808244,3479.3,3478.8,2.87454]
[1721091317161,10.67016068,3479.3,3478.9,2.87445]
[1721091317362,2.3685,3479.2,3478.9,2.87445]
[1721091317591,9.47808244,3479.3,3478.9,2.87445]
[1721091317789,0.0781218,3479.1,3478.9,2.87445]
[1721091318004,9.4,3479.3,3479.0,2.87438]
[1721091318160,9.4,3479.3,3479.2,2.87422]
[1721091318504,9.4,3479.3,3478.8,2.87454]
[1721091318800,9.4,3479.3,3479.0,2.87437]
[1721091319517,2.2843,3479.2,3479.0,2.87437]
[1721091325326,2.2843,3479.2,3478.9,2.87444]
[1721091325701,2.2843,3479.2,3479.0,2.87436]
[1721091326106,2.2843,3479.2,3478.6,2.424]
[1721091327125,2.2843,3479.2,3478.8,2.87455]
[1721091327288,2.2843,3479.2,3478.6,2.424]
[1721091327491,9.4,3479.3,3479.2,5.74844]
[1721091327731,2.93721252,3480.4,3479.9,2.87364]
[1721091327886,2.93721252,3480.4,3480.1,2.87341]
[1721091327887,9.4,3480.2,3480.1,2.87341]
[1721091330859,9.4,3480.2,3479.7,2.87379]
[1721091331034,9.4,3480.2,3479.4,2.424]
[1721091331035,9.4,3480.2,3479.5,2.87395]
[1721091331334,9.4,3480.2,3479.6,2.87388]
[1721091331335,2.3729,3480.0,3479.6,2.87388]
[1721091331898,2.3729,3480.0,3479.7,2.8738]
[1721091332233,2.3729,3480.0,3479.9,2.87364]
[1721091332431,9.4,3480.2,3480.1,5.74696]
[1721091333300,9.4,3480.2,3480.1,8.62044]
[1721091333501,9.4,3480.2,3480.1,9.17044]
[1721091333709,2.4761,3481.4,3481.1,2.87259]
[1721091333914,2.4761,3481.4,3480.9,5.29681]
[1721091333915,6.52741,3481.1,3480.9,5.29681]
[1721091334219,6.52741,3481.1,3481.0,2.87273]
[1721091335325,6.52741,3481.1,3481.0,5.74546]
[1721091336526,6.52741,3481.1,3481.0,8.61819]
[1721091336769,6.52741,3481.1,3481.0,12.16819]
[1721091339477,5.92812913,3481.1,3481.0,12.16819]
[1721091339969,2.4495,3482.5,3482.2,2.8717]
[1721091340265,0.066718,3482.4,3482.2,2.8717]
[1721091340578,2.4495,3482.5,3482.2,2.8717]
[1721091341650,0.0666787,3482.4,3482.2,5.7434]
[1721091341853,2.4495,3482.5,3482.4,2.87158]
[1721091342470,2.4205,3483.3,3482.4,2.87158]
[1721091342769,0.59586635,3483.2,3482.4,2.87158]
[1721091342929,0.59586635,3483.2,3482.6,2.87135]
[1721091342930,0.89288414,3483.2,3482.6,2.87135]
[1721091343137,0.36375814,3483.2,3482.7,2.87131]
[1721091344159,3.23469814,3483.2,3482.2,2.87168]
[1721091344469,3.23469814,3483.2,3482.3,2.87158]
[1721091344647,0.56551981,3483.1,3482.3,2.87158]
[1721091344842,0.56551981,3483.1,3482.4,2.87156]
[1721091345047,0.06681901,3483.0,3482.4,2.87156]
[1721091347532,0.06681901,3483.0,3482.5,2.87149]
[1721091348173,0.06681901,3483.0,3481.6,5.36362]
[1721091348337,0.06681901,3483.0,3482.3,2.87158]
[1721091348338,0.38002866,3482.9,3482.3,2.87158]
[1721091348544,2.5057588,3482.8,3481.7,2.87213]
[1721091348783,2.4389,3482.5,3481.1,9.794]
[1721091348975,2.4389,3482.5,3480.7,5.29694]
[1721091348976,2.87173,3482.3,3480.7,5.29694]
[1721091349151,0.06685272,3482.2,3481.4,2.87235]
[1721091349472,0.06685272,3482.2,3481.5,2.8723]
[1721091349774,1.47772527,3482.2,3481.5,2.8723]
[1721091349981,0.06677858,3482.1,3481.5,2.8723]
[1721091350437,9.46677858,3482.1,3481.5,2.8723]
[1721091351266,9.46677858,3482.1,3481.3,2.87247]
[1721091351466,2.2753,3481.9,3481.2,2.87256]
[1721091351776,0.06667107,3481.8,3481.1,2.87265]
[1721091352164,0.06667107,3481.8,3480.9,2.87282]
[1721091352366,1.65143876,3481.8,3481.2,2.87253]
[1721091353384,1.65143876,3481.8,3481.0,2.87271]
[1721091353588,1.65143876,3481.8,3480.6,2.873]
[1721091353589,2.87216,3481.7,3480.6,2.873]
[1721091353761,2.87216,3481.7,3480.8,2.87289]
[1721091354088,0.77616699,3481.6,3480.8,2.87289]
[1721091354651,2.495,3481.5,3480.5,2.87309]
[1721091354848,2.87241,3481.4,3480.5,2.87309]
[1721091355082,0.06534571,3481.4,3480.6,2.87306]
[1721091355288,1.61956156,3481.4,3480.6,2.87306]
[1721091356690,1.61956156,3481.4,3480.9,2.87281]
[1721091356691,0.06534571,3481.4,3480.9,2.87281]
[1721091357006,0.06534571,3481.4,3481.3,2.87249]
[1721091357588,9.4,3481.7,3481.4,2.87237]
[1721091357794,9.4,3481.7,3480.9,2.424]
[1721091357970,9.4,3481.7,3481.6,2.87224]
[1721091361752,9.4,3481.7,3481.4,2.87236]
[1721091361970,10.58719,3481.7,3481.2,2.87256]
[1721091363702,10.58719,3481.7,3480.9,2.8728]
[1721091363869,2.4979,3481.5,3480.7,10.24296]
[1721091364074,10.58719,3481.7,3480.3,2.87329]
[1721091364075,2.4979,3481.2,3480.3,2.87329]
[1721091364274,2.4979,3481.2,3480.6,2.87303]
[1721091364609,11.8979,3481.2,3480.1,2.87343]
[1721091365164,11.8979,3481.2,3480.4,2.87317]
[1721091365476,13.2185409,3481.2,3480.4,2.87317]
[1721091365684,13.2185409,3481.2,3480.3,2.8733]
[1721091365999,13.2185409,3481.2,3480.1,2.87347]
[1721091366000,16.0911109,3481.2,3480.1,2.87347]
[1721091366201,2.87267,3481.1,3480.2,2.87338]
[1721091367422,2.87267,3481.1,3480.0,3.87355]
[1721091367423,2.87276,3481.0,3480.0,3.87355]
[1721091367636,7.21688709,3480.9,3480.0,1.0]
[1721091368101,2.87294,3480.8,3480.0,1.0]
[1721091368501,12.27294,3480.8,3480.0,1.0]
[1721091369307,2.87306,3480.6,3480.0,1.0]
[1721091369514,2.4805,3480.7,3480.0,1.0]
[1721091369710,2.4805,3480.6,3480.0,1.0]
[1721091370043,1.22729,3480.7,3480.0,1.0]
[1721091370044,2.87348,3480.1,3480.0,1.0]
[1721091370194,8.22746,3480.1,3480.0,1.0]
[1721091370399,17.62746,3480.1,3480.0,1.0]
[1721091370594,19.67753,3480.1,3480.0,1.0]
[1721091372418,19.74231885,3480.1,3480.0,1.0]
[1721091373025,22.61579885,3480.1,3480.0,1.0]
[1721091373207,26.16579885,3480.1,3480.0,1.0]
[1721091373546,27.05682136,3480.1,3480.0,1.0]
[1721091373847,26.75943657,3480.1,3480.0,1.0]
[1721091374000,2.315,3478.9,3478.1,2.87513]
[1721091374349,0.06460333,3478.8,3478.1,2.87513]
[1721091375820,0.06460333,3478.8,3478.4,2.87486]
[1721091376362,0.06460333,3478.8,3478.2,2.87501]
[1721091376645,0.06460333,3478.8,3478.1,2.87513]
[1721091377333,0.06460333,3478.8,3478.4,2.87486]
[1721091377910,0.06460333,3478.8,3478.6,2.8747]
[1721091378241,0.06460333,3478.8,3478.4,2.87482]
[1721091378563,0.06460333,3478.8,3478.6,2.87467]
[1721091379449,0.06460333,3478.8,3478.4,2.87482]
[1721091379758,0.06460333,3478.8,3478.5,2.87476]
[1721091380627,0.06460333,3478.8,3478.6,2.87464]
[1721091380828,0.06460333,3478.8,3478.7,2.87463]
[1721091381025,0.06460333,3478.8,3478.7,8.17326]
[1721091381253,2.4256,3480.0,3479.3,2.8741]
[1721091381538,2.4256,3480.0,3479.4,2.87402]
[1721091381731,2.4256,3480.0,3478.7,5.974]
[1721091382046,2.4256,3480.0,3478.8,3.55]
[1721091382530,2.4256,3480.0,3479.3,2.8741]
[1721091382726,2.4256,3480.0,3479.4,2.87403]
[1721091383225,2.4256,3480.0,3479.5,2.87397]
[1721091384473,2.4256,3480.0,3479.5,2.87391]
[1721091386454,2.4256,3480.0,3479.3,2.8741]
[1721091387258,2.72157642,3480.0,3479.3,2.8741]
[1721091388475,2.72157642,3480.0,3479.1,2.87427]
[1721091388772,2.72157642,3480.0,3478.6,7.37]
[1721091388773,2.87387,3479.7,3478.6,2.87468]
[1721091388928,2.263,3479.6,3478.6,2.87468]
[1721091389127,2.32554348,3479.6,3478.6,2.87468]
[1721091389739,2.32554348,3479.6,3478.8,2.87454]
[1721091390145,2.32554348,3479.6,3478.5,2.87477]
[1721091390327,0.51993835,3479.5,3478.5,2.87477]
[1721091390666,0.06244841,3479.4,3478.5,2.87477]
[1721091390977,0.06244841,3479.4,3478.6,2.87467]
[1721091391331,0.06244841,3479.4,3478.5,2.87477]
[1721091392041,0.06244841,3479.4,3477.8,7.37]
[1721091392042,2.263,3479.3,3477.8,7.37]
[1721091392227,2.263,3479.3,3476.7,2.424]
[1721091392228,2.263,3478.3,3477.2,2.87587]
[1721091392629,0.06231705,3478.2,3477.2,2.87587]
[1721091393435,0.06231705,3478.2,3477.5,2.87559]
[1721091393634,1.53233676,3478.2,3477.2,2.87587]
[1721091393934,1.53233676,3478.2,3477.3,3.0]
[1721091394166,1.53233676,3478.2,3477.1,2.87592]
[1721091394561,1.53233676,3478.2,3477.1,2.87594]
[1721091394745,1.53233676,3478.2,3477.2,2.87585]
[1721091394945,1.61702868,3478.1,3477.2,2.87585]
[1721091395172,1.67903901,3478.1,3477.2,2.87585]
[1721091395346,1.67903901,3478.1,3477.3,2.87575]
[1721091395668,1.67903901,3478.1,3477.1,2.87594]
[1721091395669,1.67903901,3478.1,3477.4,2.8757]
[1721091396069,0.06201033,3478.1,3477.4,2.8757]
[1721091396467,14.63797,3478.3,3477.4,2.8757]
[1721091396671,0.06199725,3478.0,3477.4,2.8757]
[1721091396843,14.63797,3478.3,3477.4,2.8757]
[1721091397048,0.06199272,3477.9,3477.4,2.8757]
[1721091397246,2.263,3478.3,3477.4,2.8757]
[1721091397593,2.263,3478.3,3477.1,2.87594]
[1721091397594,0.06197114,3477.8,3477.7,2.87538]
[1721091397879,9.5,3478.0,3477.8,2.87531]
[1721091398472,9.5,3478.0,3477.1,2.424]
[1721091398690,9.5,3478.0,3477.5,2.87559]
[1721091399088,9.5,3478.0,3477.6,2.87552]
[1721091399496,9.5,3478.0,3477.3,2.87573]
[1721091399680,9.5,3478.0,3477.1,2.424]
[1721091399881,9.5,3478.0,3477.6,2.87554]
[1721091400483,9.5,3478.0,3477.4,2.87571]
[1721091401184,9.5,3478.0,3477.8,2.8753]
[1721091401499,9.5,3478.0,3477.9,5.75058]
[1721091402603,9.56210263,3478.0,3477.9,5.75058]
[1721091403700,9.56210263,3478.0,3477.9,2.87529]
[1721091410449,9.56210263,3478.0,3477.9,11.04987]
[1721091410731,0.06210263,3478.0,3477.9,11.59987]
[1721091410899,9.5,3478.7,3478.6,2.87471]
[1721091411101,9.5,3478.7,3478.4,2.87484]
[1721091411320,9.5,3478.7,3478.1,2.87512]
[1721091411569,9.5,3478.7,3478.3,2.87495]
[1721091411869,9.5,3478.7,3478.5,2.87478]
[1721091414472,9.5,3478.7,3478.3,2.87496]
[1721091415933,9.5,3478.7,3478.5,2.8748]
[1721091418860,9.5,3478.7,3478.6,2.87471]
[1721091419243,9.56219723,3478.7,3478.6,2.87471]
[1721091425054,9.56219723,3478.7,3478.2,2.87502]
[1721091425488,2.3839,3478.6,3478.2,2.87502]
[1721091425850,0.06221941,3478.5,3478.2,2.87502]
[1721091426398,0.06221941,3478.5,3478.3,2.87496]
[1721091426606,0.06221941,3478.5,3478.4,2.87488]
[1721091426962,0.06221941,3478.5,3478.3,2.87496]
[1721091429007,0.06221941,3478.5,3478.4,2.87488]
[1721091429678,0.06221941,3478.5,3478.2,2.87501]
[1721091430022,0.06221941,3478.5,3478.0,2.87521]
[1721091430306,1.25683135,3478.5,3478.0,2.87521]
[1721091430604,1.25683135,3478.5,3477.8,2.87538]
[1721091430605,1.25683135,3478.5,3478.1,2.87513]
[1721091431102,1.25683135,3478.5,3478.0,2.87519]
[1721091431778,1.25683135,3478.5,3477.8,2.87538]
[1721091432390,1.25683135,3478.5,3477.1,2.424]
[1721091432391,1.25683135,3478.5,3477.4,2.8757]
[1721091432587,1.40339354,3478.4,3477.4,2.8757]
[1721091432900,0.06209618,3478.3,3477.6,2.87551]
[1721091433415,9.56209618,3478.3,3477.6,2.87551]
[1721091433588,9.56209618,3478.3,3478.1,2.87512]
[1721091433925,9.56209618,3478.3,3478.2,2.87505]
[1721091434084,9.56209618,3478.3,3478.2,5.7501]
[1721091434574,9.56209618,3478.3,3478.2,2.87505]
[1721091434769,11.92709618,3478.3,3478.1,2.87511]
[1721091436474,11.92709618,3478.3,3477.9,2.87529]
[1721091436816,11.92709618,3478.3,3477.8,2.87538]
[1721091437404,11.92709618,3478.3,3478.1,2.87506]
[1721091437619,9.56209618,3478.3,3478.1,2.87506]
[1721091438476,9.56209618,3478.3,3477.9,2.87528]
[1721091438675,9.56209618,3478.3,3477.2,3.92396134]
[1721091438899,9.56209618,3478.3,3477.8,2.8753]
[1721091439103,9.56209618,3478.3,3477.4,2.87566]
[1721091439325,9.56209618,3478.3,3478.1,2.87508]
[1721091439575,9.56209618,3478.3,3478.0,2.87515]
[1721091439797,9.56209618,3478.3,3477.6,2.424]
[1721091440020,9.56209618,3478.3,3477.6,5.424]
[1721091440221,9.56209618,3478.3,3477.6,2.424]
[1721091440704,9.56209618,3478.3,3478.2,2.87505]
[1721091441093,9.56209618,3478.3,3478.1,2.87513]
[1721091441431,9.56209618,3478.3,3478.2,2.87505]
[1721091446743,10.16023264,3478.3,3478.2,2.87505]
[1721091447033,10.16083728,3478.3,3478.2,2.87505]
[1721091447207,9.56209618,3478.3,3478.2,2.87505]
[1721091447402,10.16083728,3478.3,3478.2,2.87505]
[1721091448210,9.56209618,3478.3,3478.2,2.87505]
[1721091448410,10.16083728,3478.3,3478.2,2.87505]
[1721091448628,9.56209618,3478.3,3478.2,2.87505]
[1721091448824,10.16083728,3478.3,3478.2,2.87505]
[1721091449703,9.56209618,3478.3,3478.2,5.7501]
[1721091451437,0.06209618,3478.3,3478.2,12.07350045]
[1721091451654,9.5,3479.0,3478.9,2.87447]
[1721091451995,9.56207139,3479.0,3478.9,2.87447]
[1721091452607,9.56207139,3479.0,3478.6,2.87467]
[1721091452798,9.56207139,3479.0,3478.2,9.8186]
[1721091452799,3.49639241,3478.9,3478.2,10.24499]
[1721091453027,0.5987411,3478.8,3478.5,2.87479]
[1721091453229,0.5987411,3478.7,3478.5,2.87479]
[1721091453598,0.0621994,3478.6,3478.5,2.87479]
[1721091454613,0.0621994,3478.6,3478.4,2.87487]
[1721091454811,0.6609405,3478.6,3478.4,2.87487]
[1721091456243,0.66129464,3478.6,3478.4,2.87487]
[1721091456539,0.66129464,3478.6,3478.5,2.8748]
[1721091456758,0.0621994,3478.6,3478.5,2.8748]
[1721091459143,0.06206428,3478.6,3478.5,2.8748]
[1721091459504,0.59888915,3478.8,3478.5,2.8748]
[1721091459735,0.06206428,3478.6,3478.5,2.8748]
[1721091459933,0.59888915,3478.8,3478.5,2.8748]
[1721091460142,0.06206428,3478.6,3478.5,2.8748]
[1721091460313,0.59888915,3478.8,3478.5,2.8748]
[1721091460518,0.06206428,3478.6,3478.5,2.87474]
[1721091460850,0.59888915,3478.8,3478.7,5.74926]
[1721091461143,10.39833373,3479.0,3478.7,5.74926]
[1721091461144,0.59888915,3478.9,3478.7,2.87463]
[1721091461343,10.09888915,3479.0,3478.9,2.87447]
[1721091461811,10.16091754,3479.0,3478.9,2.87447]
[1721091462742,9.56202839,3479.0,3478.9,2.87447]
[1721091463615,10.89960352,3479.0,3478.5,2.87474]
[1721091463845,0.59888915,3478.9,3478.4,2.87487]
[1721091464244,0.66101848,3478.8,3478.2,10.24503]
[1721091464544,0.59888915,3478.5,3478.0,2.8752]
[1721091464745,0.59888915,3478.6,3478.0,2.8752]
[1721091465041,0.06209827,3478.4,3478.0,2.8752]
[1721091465243,10.54696684,3478.5,3478.0,2.8752]
[1721091465446,0.06209375,3478.3,3478.0,2.8752]
[1721091465752,0.06208922,3478.2,3478.0,2.8752]
[1721091465911,10.48486404,3478.5,3478.0,2.8752]
[1721091466114,0.06208469,3478.1,3478.0,2.8752]
[1721091466317,1.36835978,3478.4,3478.0,2.8752]
[1721091466513,0.06208469,3478.1,3478.0,2.8752]
[1721091466732,1.96724893,3478.4,3478.0,2.8752]
[1721091467016,0.06208469,3478.1,3478.0,2.8752]
[1721091467216,0.59888915,3478.4,3478.0,2.8752]
[1721091467416,0.06208469,3478.1,3478.0,2.8752]
[1721091467616,0.59888915,3478.3,3478.0,2.8752]
[1721091467852,2.38428469,3478.1,3477.6,2.87554]
[1721091468055,0.59872051,3478.0,3477.6,2.87554]
[1721091468345,0.59872051,3477.9,3477.6,2.87554]
[1721091468555,0.66079494,3477.9,3477.6,2.87554]
[1721091468760,0.06207443,3477.9,3477.6,2.87554]
[1721091470749,2.92088881,3478.1,3477.6,2.87554]
[1721091470958,0.0619518,3477.8,3477.6,2.87554]
[1721091471165,2.92088881,3478.1,3477.6,2.87554]
[1721091471385,0.06194728,3477.7,3477.6,2.87554]
[1721091471533,0.59868881,3478.0,3477.7,2.8754]
[1721091471735,2.3222,3478.1,3477.7,2.8754]
[1721091472463,0.59868881,3478.2,3478.1,2.87513]
[1721091472678,3.23763321,3478.4,3477.5,2.424]
[1721091472679,2.93828881,3478.4,3478.2,2.87505]
[1721091472849,0.59868881,3478.3,3478.2,2.87505]
[1721091475340,2.93828881,3478.4,3478.2,2.87505]
[1721091476152,2.3396,3478.4,3478.2,2.87505]
[1721091476340,2.93828881,3478.4,3478.2,2.87505]
[1721091476556,2.93828881,3478.4,3478.0,2.87517]
[1721091476770,0.59868881,3478.3,3477.7,2.87543]
[1721091476936,0.59868881,3478.2,3477.8,2.87537]
[1721091477283,0.59868881,3478.1,3477.6,2.87547]
[1721091477464,0.06179804,3478.1,3477.7,2.87544]
[1721091477663,0.66048685,3478.1,3477.7,2.87544]
[1721091478279,0.06179804,3478.1,3477.7,2.87544]
[1721091478778,0.06179804,3478.1,3477.8,2.87536]
[1721091478951,0.06179804,3478.1,3477.9,2.87528]
[1721091479356,0.59868881,3478.3,3477.9,2.87528]
[1721091479566,0.06178925,3478.0,3477.9,2.87528]
[1721091479771,0.59868881,3478.3,3477.9,2.87528]
[1721091480109,0.06178925,3478.0,3477.9,2.87528]
[1721091480383,0.59868881,3478.3,3477.9,2.87528]
[1721091480586,0.06178925,3478.0,3477.9,2.87528]
[1721091480746,0.59868881,3478.3,3477.9,2.87528]
[1721091480947,0.06179209,3478.0,3477.9,2.87528]
[1721091481141,0.59868881,3478.3,3477.9,2.87528]
[1721091481349,0.06179209,3478.0,3477.9,2.87528]
[1721091481582,0.59868881,3478.3,3477.9,2.87528]
[1721091481885,0.06179209,3478.0,3477.9,2.87528]
[1721091482054,0.59868881,3478.3,3477.9,2.87528]
[1721091482256,0.06179209,3478.0,3477.9,2.87528]
[1721091482879,2.93828881,3478.4,3477.9,2.87528]
[1721091483082,0.06179209,3478.0,3477.9,2.87528]
[1721091483489,0.59868881,3478.3,3477.9,2.87528]
[1721091483789,0.59868881,3478.2,3477.9,2.87528]
[1721091483986,0.66048996,3478.2,3477.9,2.87528]
[1721091484152,0.66048996,3478.2,3477.7,2.87542]
[1721091484356,0.59868881,3478.1,3477.7,2.87542]
[1721091484758,2.9511809,3478.0,3477.4,2.87564]
[1721091484959,2.35249209,3478.0,3477.5,2.87557]
[1721091485192,2.35249209,3478.0,3477.7,2.8754]
[1721091486762,2.35249209,3478.0,3477.8,2.87535]
[1721091487602,0.06179209,3478.0,3477.8,2.87535]
[1721091487803,2.8891081,3478.3,3477.8,2.87535]
[1721091488100,0.06174919,3477.9,3477.8,2.87535]
[1721091488278,2.8891081,3478.3,3477.8,2.87535]
[1721091488479,0.06175203,3477.9,3477.8,2.87535]
[1721091489002,2.8891081,3478.3,3477.8,2.87535]
[1721091489158,0.06175774,3477.9,3477.8,2.87535]
[1721091489364,2.8891081,3478.3,3477.8,2.87535]
[1721091489674,0.06175774,3477.9,3477.6,2.87547]
[1721091489857,0.5987081,3478.2,3477.7,2.87545]
[1721091490060,0.06175322,3477.8,3477.7,2.87545]
[1721091490502,0.5987081,3478.2,3477.7,2.87545]
[1721091490998,0.0617668,3478.1,3477.7,2.87545]
[1721091491366,2.2904,3478.3,3477.7,2.87545]
[1721091491567,0.06176227,3478.0,3477.7,2.87545]
[1721091491778,2.88872874,3478.3,3477.7,2.87545]
[1721091491988,2.88872874,3478.3,3478.0,2.87515]
[1721091492365,0.06176564,3478.2,3478.0,2.87515]
[1721091492778,0.06176564,3478.2,3478.1,2.87513]
[1721091494708,0.06176564,3478.2,3477.9,2.87527]
[1721091495414,0.06176564,3478.2,3477.7,2.8754]
[1721091495716,1.20351722,3478.2,3477.5,2.87556]
[1721091495910,1.20351722,3478.2,3477.6,2.87553]
[1721091496816,1.20351722,3478.2,3477.7,2.87546]
[1721091497017,1.20351722,3478.2,3477.5,2.87558]
[1721091497180,0.43914103,3478.1,3477.5,2.87558]
[1721091497382,0.50091304,3478.1,3477.5,2.87558]
[1721091497681,10.59924178,3478.1,3477.5,2.87558]
[1721091497881,10.00091304,3478.1,3477.5,2.87558]
[1721091498387,10.59924178,3478.1,3477.5,2.87558]
[1721091499082,10.00091304,3478.1,3477.5,2.87558]
[1721091499284,9.56177201,3478.1,3477.5,2.87558]
[1721091500316,0.59832874,3478.0,3477.5,2.87558]
[1721091500823,9.56177201,3478.1,3477.3,2.87578]
[1721091500824,2.2806,3477.8,3477.3,2.87578]
[1721091500989,2.2806,3477.8,3477.4,2.87568]
[1721091501185,0.06175922,3477.7,3477.4,2.87568]
[1721091501389,2.2806,3477.8,3477.4,2.87568]
[1721091501601,0.0617446,3477.6,3477.4,2.87568]
[1721091501833,2.2806,3477.8,3477.4,2.87568]
[1721091502131,2.2806,3477.8,3477.5,2.87561]
[1721091504322,2.2806,3477.8,3477.7,1.013]
[1721091505423,9.5,3478.1,3478.0,2.87521]
[1721091505796,9.5,3478.1,3477.9,1.013]
[1721091505797,9.5,3478.1,3477.9,3.88828]
[1721091505992,9.5,3478.1,3477.9,2.87528]
[1721091506435,10.09833238,3478.1,3477.7,1.013]
[1721091506729,10.09833238,3478.1,3477.9,2.87527]
[1721091507501,0.06172306,3478.0,3477.9,2.87527]
[1721091508244,0.06172306,3478.0,3477.9,3.88827]
[1721091511739,0.06172306,3478.0,3477.9,2.87527]
[1721091511907,0.06172306,3478.0,3477.9,3.88827]
[1721091512609,0.66005544,3478.0,3477.9,3.88827]
[1721091512938,0.06172306,3478.0,3477.9,3.88827]
[1721091513517,0.66005544,3478.0,3477.9,3.88827]
[1721091513715,0.06172306,3478.0,3477.9,3.88827]
[1721091514052,0.66130535,3478.0,3477.9,3.88827]
[1721091517943,0.66130535,3478.0,3477.9,2.87527]
[1721091518325,0.66130535,3478.0,3477.8,2.87537]
[1721091518520,0.66130535,3478.0,3477.6,2.87551]
[1721091518725,0.59958229,3477.9,3477.6,3.88851]
[1721091518947,2.3591207,3477.8,3477.6,3.88851]
[1721091519129,2.3591207,3477.8,3477.4,1.013]
[1721091519130,2.95870299,3477.8,3477.4,1.013]
[1721091519326,0.59958229,3477.7,3477.4,1.013]
[1721091519525,0.06172588,3477.6,3477.4,1.013]
[1721091520246,0.44753404,3477.6,3477.3,7.37]
[1721091520459,0.59958229,3477.4,3477.0,2.87604]
[1721091520759,0.59885938,3477.3,3477.0,2.87604]
[1721091521049,0.59885938,3477.2,3477.0,2.87604]
[1721091521210,0.66055329,3477.2,3477.0,2.87604]
[1721091521416,0.06169391,3477.2,3477.0,2.87604]
[1721091521719,0.59885938,3477.3,3477.0,2.87604]
[1721091521922,0.06168695,3477.1,3477.0,2.87604]
[1721091522123,0.59885938,3477.3,3477.0,2.87604]
[1721091522512,0.59885938,3477.3,3476.8,3.88919]
[1721091522746,0.06169485,3477.2,3476.9,2.87611]
[1721091523146,0.59885938,3477.3,3476.9,2.87611]
[1721091523353,2.4863,3477.0,3476.2,6.48057915]
[1721091523566,2.4863,3477.0,3476.3,4.013]
[1721091523760,0.66033734,3476.9,3476.3,4.013]
[1721091523981,0.06147796,3476.9,3476.3,4.013]
[1721091524249,0.06147796,3476.9,3476.3,6.88961]
[1721091524827,0.46607904,3476.9,3476.3,2.87661]
[1721091525048,1.06493842,3476.9,3476.3,2.87661]
[1721091525254,1.06493842,3476.9,3476.4,2.87649]
[1721091525421,0.46607904,3476.9,3476.4,2.87649]
[1721091526656,0.46607904,3476.9,3476.4,3.88949]
[1721091526860,0.06147796,3476.9,3476.4,3.88949]
[1721091527583,0.06147796,3476.9,3476.5,2.87644]
[1721091531181,0.06147796,3476.9,3476.6,2.87634]
[1721091531601,0.06147796,3476.9,3476.7,2.87627]
[1721091533609,0.06147796,3476.9,3476.8,2.8762]
[1721091533974,2.87725659,3477.5,3477.0,2.876]
[1721091534287,9.91583496,3477.4,3477.0,2.876]
[1721091534671,9.5,3477.4,3477.1,2.87594]
[1721091535689,9.5,3477.4,3477.2,2.87585]
[1721091536269,9.5,3477.4,3477.0,2.87599]
[1721091536684,9.5,3477.4,3476.9,2.87611]
[1721091536885,2.366,3477.3,3476.7,2.87628]
[1721091537109,1.24628566,3477.2,3476.7,2.87628]
[1721091537617,1.013,3476.8,3475.9,2.87693]
[1721091537911,0.5966041,3476.7,3476.0,2.87685]
[1721091538077,0.06132696,3476.7,3476.0,5.75364]
[1721091538281,0.06132696,3476.7,3476.0,2.87679]
[1721091539384,0.06132696,3476.7,3476.0,3.88979]
[1721091539590,2.366,3476.9,3476.0,3.88979]
[1721091539893,0.06120293,3476.6,3476.1,2.87678]
[1721091540099,3.9999252,3476.9,3476.1,2.87678]
[1721091540272,0.06119896,3476.5,3476.1,2.87678]
[1721091540475,3.40373057,3476.9,3476.1,2.87678]
[1721091540690,0.06117027,3476.4,3476.1,2.87678]
[1721091540884,3.9999252,3476.9,3476.1,2.87678]
[1721091541088,0.06116574,3476.3,3476.1,2.87678]
[1721091541285,2.96219463,3476.9,3476.1,2.87678]
[1721091541484,0.0611612,3476.2,3476.1,2.87678]